Cogmind - Beta 16.1 @@@ ROGUE MODE // 2026.02.23 @ 17:49:02 Player: Ceorik Result: Destroyed by V4-QKA(R) with Subdweller Beam Cannon Performance ------------- Evolutions (0) 0 Regions Visited (2) 400 Robots Destroyed (18) 90 Value Destroyed (374) 374 Prototype IDs (2) 40 Alien Tech Used (0) 0 Bonus (0) 0 TOTAL SCORE: 904 Bonus ------- None Cogmind --------- Core Integrity 0/250 Matter 285/300 Energy 100/100 System Corruption 0% Temperature Cool (15) Movement Core (400) Ox7 Location -10/Subcaves Parts ------- > --- POWER (1) -------- (None) > --- PROPULSION (2) --- (None) > --- UTILITY (2) ------ Improved Heat Sink Large Storage Unit > --- WEAPON (2) ------- Makeshift Hammer > --- INVENTORY (15) --- Light Treads Subdweller Monowheel Medium Storage Unit Small Matter Pod (50) Small Matter Pod (50) Small Matter Pod (50) Small Matter Pod (50) Sensor Array Improved Terrain Scanner Riot Gun Subdweller Laser Light Assault Rifle Subdweller Machine Gun Subdweller Shrapnel Launcher Peak State ------------ > --- POWER ------------ Makeshift Power Source > --- PROPULSION ------- Light Treads Light Treads > --- UTILITY ---------- Improved Heat Sink Large Storage Unit > --- WEAPON ----------- Medium Laser Makeshift Hammer > --- INVENTORY -------- Light Ion Engine Light Treads Wheel Medium Storage Unit Small Matter Pod Small Matter Pod Small Matter Pod Small Matter Pod Sensor Array Improved Terrain Scanner Riot Gun Small Laser Small Laser Subdweller Laser Light Assault Rifle [Rating: 17] Favorites ----------- Power Light Ion Engine Engine Light Ion Engine Propulsion Light Treads Treads Light Treads Utility Large Storage Unit Device Seismic Detector Storage Large Storage Unit Weapon Medium Laser Energy Gun Medium Laser Impact Weapon Makeshift Hammer Build | -11 -10 -10 ------- Run | Yrd Mat Sub Slots Evolved . | . . . Power . | . . . Propulsion . | . . . Utility . | . . . Weapon . | . . . Parts Attached 16 | 7 5 4 Power 5 | 1 2 2 Engine 5 | 1 2 2 Core . | . . . Reactor . | . . . Propulsion 2 | 2 . . Treads 2 | 2 . . Leg . | . . . Wheel . | . . . Hover . | . . . Flight . | . . . Utility 6 | 2 3 1 Device 4 | 1 2 1 Storage 2 | 1 1 . Processor . | . . . Hackware . | . . . Protection . | . . . Artifact . | . . . Weapon 3 | 2 . 1 Energy Gun 2 | 2 . . Energy Cannon . | . . . Ballistic Gun . | . . . Ballistic Cannon . | . . . Launcher . | . . . Special Weapon . | . . . Impact Weapon 1 | . . 1 Slashing Weapon . | . . . Piercing Weapon . | . . . Special Melee Weapon . | . . . Unidentified Prototypes . | . . . Parts Lost 6 | . 1 5 Power 3 | . 1 2 Propulsion 2 | . . 2 Utility . | . . . Weapon 1 | . . 1 Highest Loss Streak 5 | . 1 5 To Critical Strikes . | . . . Average Backups 11 | 2 10 14 Power . | . . . Propulsion 2 | 1 3 2 Utility 5 | . 4 7 Weapon 2 | . 2 4 Tool/Special . | . . . Unused Backups 19 | . 3 16 Power . | . . . Propulsion 6 | . 2 4 Utility 6 | . 1 5 Weapon 7 | . . 7 Tool/Special . | . . . Average Slot Usage (%) 99 | . 99 99 Engine 13 | . 13 14 Treads 27 | . 28 27 Device 14 | . 14 14 Storage 14 | . 14 14 Energy Gun 25 | . 28 19 Impact Weapon 2 | . . 8 Peak Build Rating 17 | 7 10 17 Average Rating 9 | 5 8 13 On Entrance 5 | . 7 8 Avg Prop Armor Cover (%) . | . . . Naked Turns . | . . . Heaviest Build 31 | 12 29 31 Greatest Support 40 | 40 40 40 Greatest Overweight (x) 9 | . . 9 Average Overweight (x) . | . . . Largest Inventory Capacity 15 | 8 15 15 Average Capacity 12 | 7 11 15 Most Carried 15 | 5 15 15 Average Carried 11 | 2 10 14 Final Capacity 15 | 8 15 15 Final Carried 15 | 5 15 14 Class Distribution -------------------- 100% | Mutant Dominant Class ---------------- Mutant | -10/Materials Mutant | -10/Subcaves Resources | -11 -10 -10 ----------- Run | Yrd Mat Sub Matter Collected 615 | 270 285 60 Remotely . | . . . Salvage Created 608 | 88 453 67 Parts 36 | 9 22 5 Haulers Intercepted 2 | . 2 . Recyclers Shooed . | . . . Parts Field Recycled . | . . . Retrieved Matter . | . . . Parts Self-Destructed . | . . . Prevented . | . . . Parts Restored . | . . . Kills | -11 -10 -10 ------- Run | Yrd Mat Sub Combat Hostiles Destroyed 11 | . 9 2 Melee 1 | . . 1 Guns 10 | . 9 1 Classes Destroyed 7 | 2 4 1 Tunneler 3 | 2 1 . Hauler 2 | . 2 . Recycler 1 | 1 . . Watcher 1 | . 1 . Swarmer 3 | . 3 . Grunt 6 | . 6 . Subdweller 2 | . . 2 Best Kill Streak 3 | 3 3 1 Combat Bots Only 3 | . 3 1 Max Kills in Single Turn 1 | 1 1 1 Gunslinging . | . . . Exploded . | . . . Melee 1 | . . 1 Uniques/NPCs Destroyed . | . . . Combat | -11 -10 -10 -------- Run | Yrd Mat Sub Hostile Shots Fired 68 | . 33 35 Missed 21 | . 9 12 Hits 47 | . 24 23 Projectile 47 | . 24 23 Critical Strikes 3 | . . 3 Damage Taken 823 | . 307 516 Core 266 | . 87 179 Absorbed by Shields . | . . . Core Remaining (%) 100 | 100 . . Volleys Fired 51 | 5 40 6 Largest 2 | 2 2 2 Hottest 90 | 90 90 90 Shots Fired 101 | 10 79 12 Gun 101 | 10 79 12 Cannon . | . . . Launcher . | . . . Special . | . . . Kinetic . | . . . Thermal 101 | 10 79 12 Explosive . | . . . Electromagnetic . | . . . Robot Hit Streak 11 | 7 10 11 Robot Miss Streak 5 | 1 5 1 Penetration Max . | . . . Secondary Targets . | . . . Shots Hit Robots 79 | 8 50 21 Core Hits 31 | 4 23 4 Critical Kills . | . . . Critical Parts Destroyed 1 | . . 1 Critical Strikes 6 | . 5 1 Burn 5 | . 5 . Smash 1 | . . 1 Melee Attacks 15 | . . 15 Impact 15 | . . 15 Slashing . | . . . Piercing . | . . . Sneak Attacks . | . . . Combat Hostiles . | . . . Follow-up Attacks . | . . . Damage Inflicted 1328 | 95 618 615 Guns 840 | 95 618 127 Cannons . | . . . Explosions . | . . . Melee 488 | . . 488 Ramming . | . . . Kinetic . | . . . Thermal 840 | 95 618 127 Explosive . | . . . Electromagnetic . | . . . Impact 488 | . . 488 Slashing . | . . . Piercing . | . . . Highest Corruption . | . . . Average Corruption . | . . . Corruption Purged . | . . . Corruption Blocked . | . . . Overload Shots . | . . . Overflow Damage 101 | . . 101 Projectiles . | . . . Explosions . | . . . Melee 101 | . . 101 Knockbacks 3 | . . 3 Impact 3 | . . 3 Kinetic . | . . . Secondary . | . . . Self-Inflicted Damage . | . . . Shots . | . . . Rammed . | . . . Targets Rammed . | . . . Kicked . | . . . Crushed . | . . . Highest Temperature 251 | 60 251 . Average Temperature 62 | 28 66 . Received Heat Transfer 270 | . 129 141 Effects 3 | . 3 . Interference 3 | . 3 . Siege Activations . | . . . Martial Activations . | . . . Shielding Activations . | . . . Robots Disrupted . | . . . Combat Hostiles . | . . . Robots Corrupted . | . . . Combat Hostiles . | . . . Parts Fried . | . . . Impact Corruptions 3 | . . 3 Robots Melted . | . . . Combat Hostiles . | . . . Parts Melted 6 | 1 5 . Heat Transferred 2578 | 236 2007 335 Parts Sabotaged . | . . . Parts Stolen . | . . . Parts Stripped . | . . . Power Chain Reactions . | . . . Alert | -11 -10 -10 ------- Run | Yrd Mat Sub Maximum Alert Level . | . . . Low Security (%) 100 | 100 100 . Level 1 . | . . . Level 2 . | . . . Level 3 . | . . . Level 4 . | . . . Level 5 . | . . . High Security . | . . . Max Security . | . . . Peak Influence 73 | 10 73 . Initial . | . . . Average 17 | . 20 . Influence Increases 265 | 15 250 . Destroy 0b10 Robot/C 180 | . 180 . Destroy 0b10 Robot/NC 35 | 15 20 . Destroy Leader 26 | . 26 . Successful Hack 9 | . 9 . Lose Combat Pursuer 15 | . 15 . Influence Decreases 265 | 15 250 . Time Decay 255 | 15 240 . Lost Part 10 | . 10 . Squads Dispatched 1 | . 1 . Investigation . | . . . Extermination . | . . . Reinforcement 1 | . 1 . Assault . | . . . Garrison . | . . . Intercept . | . . . Searches Triggered . | . . . Construction Impeded . | . . . Haulers Reinforced . | . . . Active Scanning Responses . | . . . Cargo Convoy Interrupts . | . . . Stealth | -11 -10 -10 --------- Run | Yrd Mat Sub Distress Signals 1 | . 1 . Communications Jammed . | . . . Distress Signals . | . . . Times Spotted 24 | . 18 6 Peak Tracking Total 4 | . 4 2 Tactical Retreats 2 | . 1 1 Traps | -11 -10 -10 ------- Run | Yrd Mat Sub Traps Triggered 1 | . 1 . Indirectly . | . . . Trap Hack Attempts . | . . . Triggered . | . . . Disarmed . | . . . Reprogrammed . | . . . Reused . | . . . Traps Extracted . | . . . Installed . | . . . Triggered . | . . . Machines | -11 -10 -10 ---------- Run | Yrd Mat Sub Machines Disabled . | . . . Max in Single Turn . | . . . Machines Repaired . | . . . Machines Dismantled . | . . . Machines Sabotaged . | . . . Overloaded Fab Kills . | . . . Hacking | -11 -10 -10 --------- Run | Yrd Mat Sub Machines Accessed 7 | . 7 . Terminals 6 | . 6 . Fabricators . | . . . Repair Stations . | . . . Recycling Units 1 | . 1 . Scanalyzers . | . . . Garrison Access . | . . . Total Hacks 20 | . 20 . Successful 10 | . 10 . Failed 10 | . 10 . Catastrophic 2 | . 2 . Database Lockouts . | . . . Manual 15 | . 15 . Terminals 19 | . 19 . Fabricators . | . . . Repair Stations . | . . . Recycling Units 1 | . 1 . Scanalyzers . | . . . Garrison Access . | . . . Terminal Hacks 4 | . 4 . Prototype ID Bank 1 | . 1 . Dispatch Records 1 | . 1 . Maintenance Status 1 | . 1 . Registered Components 1 | . 1 . Fabricator Hacks . | . . . Repair Station Hacks . | . . . Recycling Unit Hacks 1 | . 1 . Report Inventory 1 | . 1 . Scanalyzer . | . . . Garrison Access Hacks . | . . . Unauthorized Hacks 5 | . 5 . Terminals 5 | . 5 . Botnet 5 | . 5 . Fabricators . | . . . Repair Stations . | . . . Recycling Units . | . . . Scanalyzers . | . . . Garrison Access . | . . . Data Cores Recovered . | . . . Used . | . . . Hacking Detections 5 | . 5 . Full Trace Events . | . . . Feedback Events . | . . . Feedback Blocked . | . . . Robot Schematics Acquired . | . . . Robots Built . | . . . Authchips . | . . . Time . | . . . Total Robot Build Rating . | . . . Part Schematics Acquired . | . . . Parts Built . | . . . Authchips . | . . . Time . | . . . Total Part Build Rating . | . . . Part Studies Acquired . | . . . Parts Repaired . | . . . Time . | . . . Parts Recycled . | . . . Recycled Matter . | . . . Retrieved Matter . | . . . Retrieved Components . | . . . Parts Scanalyzed . | . . . Part Schematics Acquired . | . . . Parts Damaged . | . . . Bothacking | -11 -10 -10 ------------ Run | Yrd Mat Sub Used RIF Installer . | . . . Robots Hacked . | . . . Non-combat . | . . . Combat . | . . . Robot Hacks Applied . | . . . Relay Couplers Released . | . . . Fabnet Peak Effective % . | . . . Robots Rewired . | . . . Allies Hacked . | . . . Hacks Repelled . | . . . Allies | -11 -10 -10 -------- Run | Yrd Mat Sub Total Allies . | . . . Largest Group . | . . . Highest-Rated Group . | . . . Highest-Rated Ally . | . . . Total Orders . | . . . Ally Attacks . | . . . Total Damage . | . . . Kills . | . . . Allies Corrupted . | . . . Allies Melted . | . . . Intel | -11 -10 -10 ------- Run | Yrd Mat Sub Active Infowar (turns) 1310 | 21 998 291 Sensors 223 | . . 223 Terrain 255 | . 255 . Seismic 832 | 21 743 68 Robot Analysis Total . | . . . Derelict Logs Recovered . | . . . Drone Launches . | . . . Drone Recoveries . | . . . Exploration | -11 -10 -10 ------------- Run | Yrd Mat Sub Turns Passed 1712 | 164 1029 519 Spaces Moved 821 | 85 481 255 Core 5 | 4 . 1 Treads 816 | 81 481 254 Legs . | . . . Wheels . | . . . Hover . | . . . Flight . | . . . Fastest Speed 50 | 50 160 160 Average Speed 159 | 154 160 161 Slowest Speed 500 | 160 160 500 Overloaded Moves . | . . . Propulsion Burnouts . | . . . Robots Hopped . | . . . Potential Cave-ins . | . . . Cave-ins Triggered . | . . . Exploration Rate (%) 29 | 6 66 17 Regions Visited 2 Branch Regions 1 Pre-discovered Areas 1 | . . 1 Known Exits Taken . | . . . Unknown Exits Taken 2 | 1 1 . Scrap Searched 3 | . . 3 Spaces Dug . | . . . Terrain Destroyed . | . . . Melee . | . . . Projectile . | . . . AOE . | . . . Terrain Rammed . | . . . Walls Destroyed . | . . . Machines Disabled . | . . . Actions | -11 -10 -10 --------- Run | Yrd Mat Sub Total 1102 | 104 661 337 Wait 155 | 3 114 38 Move 819 | 84 480 255 Hop . | . . . Pick Up 24 | 5 13 6 Fast Attach 8 | 7 1 . Attach 1 | . . 1 Detach . | . . . Swap 17 | . 8 9 Drop 12 | . 5 7 Fire 51 | 5 40 6 Melee 15 | . . 15 Ram . | . . . Kick . | . . . Crush . | . . . Escape Stasis . | . . . Rewire . | . . . Trap . | . . . Miscellaneous . | . . . Route ------- -11/Scrapyard -10/Materials (discovered 5 exits: [*Mat x2] / [*Min x2] / [*Sub]) -10/Subcaves (discovered 2 exits: [*Mat x2]) History --------- Turn | Location | Event 2 | -11/Scrapyard | Met Revision 17 11 | -11/Scrapyard | Discovered new exit (range 15) 165 | -11/Scrapyard | Entered Materials 252 | -10/Materials | Discovered new exit (range 16) 318 | -10/Materials | Build established: Mutant 585 | -10/Materials | Discovered new exit (range 16) 705 | -10/Materials | Discovered new exit (range 7) 797 | -10/Materials | Discovered new exit (range 9) 1107 | -10/Materials | Discovered new exit (range 4) 1194 | -10/Materials | Entered Subcaves 1278 | -10/Subcaves | Core integrity fell below 50% 1328 | -10/Subcaves | Discovered new exit (range 7) 1334 | -10/Subcaves | Learned location of Zion (-6) 1334 | -10/Subcaves | Met a Zionite searching for "candidates" 1345 | -10/Subcaves | Discovered new exit (range 10) 1710 | -10/Subcaves | Core integrity fell below 20% 1713 | -10/Subcaves | Destroyed by V4-QKA(R) with Subdweller Beam Cannon Last Messages --------------- 01444_ Dropped Wheel. 01445_ Acquired Sub. Monowheel. 01492_ Dropped Sml. Laser. 01493_ Acquired Sub. Shrapnel Launcher. 01524_ Acquired 10 matter. 01619_ 81-JKF(R) suffers critical hit (Smash). 01619_ Destroyed Sub. Machine Gun. 01619_ 81-JKF(R) system corrupted by crushing effect. 01695_ 0C-GOH(R) knocked back. 01696_ Mak. Power Source destroyed. 01703_ Destroyed Sub. Monowheel. 01703_ 0C-GOH(R) system corrupted by crushing effect. 01703_ 0C-GOH(R) misfires. 01705_ Lgt. Treads destroyed. 01709_ 0C-GOH(R) knocked back. 01711_ Lgt. Treads destroyed. 01711_ Lgt. Ion Engine destroyed. 01711_ Med. Laser destroyed. Map ----- +----------------------------------------------------+ | ### #?????????????????????????????????????? | | # #?????????????????????????????????????? | | ????#######???????????????????????? | | ##??????????## ##??????????????????????? | | #???????????# #??????????????????????? | | ##??????????# #??????????????????????? | | # ####??????????# #??????????????????????? | | ### #?????????## #??????????????????????? | | ??## # %##????#### ##??????????????????????? | | ??## ##? #???## ##???????????????????????? | | ?## #?? #???# #????????????????????????? | | ?# ##?? #??## #????????????????????????? | | ?# % #?? % #???### #????????????????????????? | | ?# ##?# #?????## #????????????????????????? | | ?# %%#?? ??????# ##????????????????????????? | | ?#% #?## ??????# ##?????????????????????????? | | ?# #?#% ??????# #?###??????????????????????? | | ?# ##?# #?###??### ### #######????????????????? | | ?# #?## ###%#????# #????????????????? | | ?# #### ## #???## #????"???????????? | | ?# ## % ##### ## ##"" "???????????? | | ?## #?# #### "" ??????????? | | ??# #?# % #### ## "" ??????????? | | ?## ### ## ##R ##??? ???????????? | | ?# ### R #??????????????????? | | ?# ## #### ###@ #??????????????????? | | ?####### ## #####?# ;###??????????????????? | | ???????## ### #????# ##????????????????????? | | ????????# ##### #??" ??????????????????? | | ????????## #????# #?## ??????????????? | | ?????????# #????? #?? # # # #??????????? | | ????????? ??????##? ####?#?? #??????????? | | ????????? %???????# ##??????????##??????????? | | ?????????### ?????? ????????????????????????? | | ???????????? ????# ##????????????????????????? | | ????????????### #???# #??????????????????????????? | | ???????????????##??? ???????????????????????????? | | ??????????????????? ???????????????????????????? | | ??????????????????? ????????????????????????????? | | ??????????????????? ????????????????????????????? | | ?????????????????? ?????????????????????????????? | | ?????????????????????????????????????????????????? | | ?????????????????????????????????????????????????? | | ?????????????????????????????????????????????????? | | ?????????????????????????????????????????????????? | | ?????????????????????????????????????????????????? | | ?????????????????????????????????????????????????? | | ?????????????????????????????????????????????????? | | ?????????????????????????????????????????????????? | | ?????????????????????????????????????????????????? | +----------------------------------------------------+ Best States ------------- Heat Dissipation 39 Energy Generation 15 Energy Capacity 250 Matter Stores 300 Matter Capacity 300 Sight Range 16 Robot Scan Range 14 Terrain Scan Range 16 Terrain Scan Density 10 Evasion (%) 40 Recoil Reduction 2 Item Schematics ----------------- None Robot Schematics ------------------ None Fabricated ------------ Nothing Repaired ---------- Nothing Studied --------- None Alien Tech Used ----------------- None Achievements -------------- None Challenges ------------ None Game ------ Seed NuclearDimensionalTorch Manual? 0 Play Time 00:15:38 Cumulative 58.6 hours Start 2026.02.23 @ 17:36:58 End 2026.02.23 @ 17:49:02 Sessions 1 Manual Loads 0 Difficulty Rogue Special Mode None Game No. 61 Rogue 61 Adventurer 0 Explorer 0 Win Type - Total 0 Types 0/0/0/0/0/0/0/0/0/0 Lore% 53 Gallery% 39 Achievement% 32 Wizard Run 0 Options --------- Layout 1 ASCII 0 Keyboard 0 Movement Mouse Keybinds 0 Fullscreen 1 Font 24/Swanston Map View 50x35 Zoom Use 0% Tactical HUD 1 Map Filters NONE Filters NONE Steam 1 RUN: 07d0fd4d-cfb0-4818-8d06-55b909c7a7fa